Cogmind - Beta 13 *** ADVENTURER MODE // 2024.06.08 @ 23:35:48 Player: Deep Beef Result: Destroyed by TH-HRL(R) with Subdweller Laser Performance ------------- Evolutions (0) 0 Regions Visited (2) 400 Robots Destroyed (20) 100 Value Destroyed (635) 635 Prototype IDs (14) 280 Alien Tech Used (0) 0 Bonus (0) 0 TOTAL SCORE: 1415 Bonus ------- None Cogmind --------- Core Integrity 0/250 Matter 288/300 Energy 178/180 System Corruption 0% Temperature Cool (6) Movement Rolling (120) Ox1 Location -10/Subcaves Parts ------- > --- POWER (1) -------- Meta Core > --- PROPULSION (2+1) - Subdweller Monowheel Subdweller Monowheel (+) > --- UTILITY (2) ------ High-capacity Storage Unit Terrain Scanner > --- WEAPON (2) ------- Spread Laser > --- INVENTORY (20) --- Light Ion Engine Small Storage Unit Sensor Array Improved Targeting Computer Gun Armor Makeshift System Restoration Module Makeshift Laser Battle Cannon Plasma Cutter Makeshift Spear Peak State ------------ > --- POWER ------------ Meta Core > --- PROPULSION ------- Subdweller Monowheel Subdweller Monowheel Subdweller Monowheel > --- UTILITY ---------- High-capacity Storage Unit Makeshift System Restoration Module > --- WEAPON ----------- Subdweller Beam Cannon Subdweller Machine Gun Heavy Battle Rifle > --- INVENTORY -------- Light Ion Engine Small Storage Unit Sensor Array Terrain Scanner Improved Targeting Computer Spread Laser Plasma Cutter [Rating: 33] Favorites ----------- Power Meta Core Engine Light Ion Engine Power Core Meta Core Propulsion Aluminum Leg Leg Aluminum Leg Wheel Subdweller Monowheel Utility Small Storage Unit Device Sensor Array Storage Small Storage Unit Protection Weapon Shielding Weapon Spread Laser Energy Gun Spread Laser Energy Cannon Subdweller Beam Cannon Ballistic Gun Subdweller Machine Gun Build | -11 -10 -10 ------- Run | Yrd Mat Sub Slots Evolved . | . . . Power . | . . . Propulsion . | . . . Utility . | . . . Weapon . | . . . Parts Attached 26 | 6 5 15 Power 2 | 1 . 1 Engine 1 | 1 . . Core 1 | . . 1 Reactor . | . . . Propulsion 6 | 2 . 4 Treads . | . . . Leg 2 | 2 . . Wheel 4 | . . 4 Hover . | . . . Flight . | . . . Utility 9 | 1 3 5 Device 4 | . 1 3 Storage 4 | 1 2 1 Processor . | . . . Hackware . | . . . Protection 1 | . . 1 Artifact . | . . . Weapon 9 | 2 2 5 Energy Gun 6 | 2 2 2 Energy Cannon 1 | . . 1 Ballistic Gun 2 | . . 2 Ballistic Cannon . | . . . Launcher . | . . . Special Weapon . | . . . Impact Weapon . | . . . Slashing Weapon . | . . . Piercing Weapon . | . . . Special Melee Weapon . | . . . Unidentified Prototypes 1 | . . 1 Parts Lost 7 | . . 7 Power . | . . . Propulsion 2 | . . 2 Utility 2 | . . 2 Weapon 3 | . . 3 Highest Loss Streak 2 | . . 2 To Critical Strikes . | . . . Average Slot Usage (%) 93 | . 99 89 Engine 6 | . 14 1 Core 5 | . . 9 Leg 15 | . 28 5 Wheel 9 | . . 16 Device 11 | . 13 9 Storage 12 | . 14 10 Protection 2 | . . 3 Energy Gun 16 | . 28 8 Energy Cannon 3 | . . 6 Ballistic Gun 9 | . . 15 Naked Turns . | . . . Heaviest Build 63 | 11 15 63 Greatest Support 60 | 20 20 60 Greatest Overweight (x) 3 | 3 . 2 Average Overweight (x) . | . . 1 Largest Inventory Capacity 20 | 8 20 20 Average Capacity 11 | 7 8 14 Most Carried 10 | 2 9 10 Average Carried 6 | 1 6 7 Final Capacity 20 | 8 8 20 Final Carried 10 | 2 8 10 Class Distribution -------------------- 51% | Mutant 26% | Scavenger-Skirmisher 19% | Tank Dominant Class ---------------- Mutant | -10/Materials Scavenger-Skirmisher | -10/Subcaves Resources | -11 -10 -10 ----------- Run | Yrd Mat Sub Matter Collected 528 | 192 98 238 Remotely . | . . . Salvage Created 572 | . 261 311 Parts 43 | . 20 23 Haulers Intercepted . | . . . Recyclers Shooed . | . . . Parts Field Recycled . | . . . Retrieved Matter . | . . . Parts Self-Destructed 8 | . . 8 Prevented . | . . . Kills | -11 -10 -10 ------- Run | Yrd Mat Sub Combat Hostiles Destroyed 17 | . 7 10 Guns 14 | . 7 7 Cannons 3 | . . 3 Classes Destroyed 4 | . 2 2 Watcher 3 | . 3 . Swarmer 3 | . . 3 Grunt 7 | . 7 . Subdweller 7 | . . 7 Best Kill Streak 4 | . 4 3 Combat Bots Only 3 | . 2 3 Max Kills in Single Turn 2 | . 2 2 Gunslinging 1 | . 1 1 Exploded . | . . . Melee . | . . . Uniques/NPCs Destroyed . | . . . Combat | -11 -10 -10 -------- Run | Yrd Mat Sub Hostile Shots Fired 89 | . 18 71 Missed 23 | . 5 18 Damage Taken 978 | . 141 837 Core 252 | . 32 220 Absorbed by Shields . | . . . Redirected to Shielding 54 | . . 54 Ignored by Resistances 255 | . 42 213 Core Remaining (%) 100 | 100 . . Volleys Fired 57 | . 22 35 Largest 3 | . 2 3 Hottest 175 | . 130 175 Shots Fired 133 | . 44 89 Gun 113 | . 44 69 Cannon 20 | . . 20 Launcher . | . . . Special . | . . . Kinetic 45 | . . 45 Thermal 78 | . 37 41 Explosive . | . . . Electromagnetic 10 | . 7 3 Robot Hit Streak 26 | . 16 26 Robot Miss Streak 6 | . 6 2 Penetration Max . | . . . Secondary Targets 2 | . 1 1 Max Gunslinging Chain 1 | . 1 1 Shots Hit Robots 78 | . 37 41 Core Hits 63 | . 43 20 Critical Kills 1 | . . 1 Critical Parts Destroyed 1 | . . 1 Critical Strikes 2 | . . 2 Destroy 2 | . . 2 Melee Attacks . | . . . Impact . | . . . Slashing . | . . . Piercing . | . . . Sneak Attacks . | . . . Combat Hostiles . | . . . Follow-up Attacks . | . . . Damage Inflicted 1489 | . 553 936 Guns 1320 | . 553 767 Cannons 169 | . . 169 Explosions . | . . . Melee . | . . . Ramming . | . . . Kinetic 573 | . . 573 Thermal 804 | . 498 306 Explosive . | . . . Electromagnetic 112 | . 55 57 Impact . | . . . Slashing . | . . . Piercing . | . . . Highest Corruption . | . . . Average Corruption . | . . . Corruption Purged . | . . . Corruption Blocked . | . . . Overload Shots . | . . . Overflow Damage . | . . . Projectiles . | . . . Explosions . | . . . Melee . | . . . Knockbacks . | . . . Impact . | . . . Kinetic . | . . . Secondary . | . . . Self-Inflicted Damage . | . . . Shots . | . . . Rammed . | . . . Targets Rammed . | . . . Kicked . | . . . Crushed . | . . . Highest Temperature 325 | . 325 68 Average Temperature 66 | . 94 25 Received Heat Transfer 330 | . 126 204 Effects 3 | . 3 . Shutdowns 1 | . 1 . Interference 2 | . 2 . Siege Activations . | . . . Robots Corrupted . | . . . Combat Hostiles . | . . . Parts Fried 1 | . . 1 Impact Corruptions . | . . . Robots Melted . | . . . Combat Hostiles . | . . . Parts Melted 1 | . . 1 Heat Transferred 1092 | . 700 392 Parts Sabotaged . | . . . Parts Stolen . | . . . Parts Stripped . | . . . Power Chain Reactions . | . . . Alert | -11 -10 -10 ------- Run | Yrd Mat Sub Peak Influence 219 | . 219 . Initial . | . . . Average 67 | . 70 . Maximum Alert Level 1 | . 1 . Low Security (%) 87 | 100 86 . Level 1 12 | . 13 . Level 2 . | . . . Level 3 . | . . . Level 4 . | . . . Level 5 . | . . . High Security . | . . . Max Security . | . . . Squads Dispatched 1 | . 1 . Investigation 1 | . 1 . Extermination . | . . . Reinforcement . | . . . Assault . | . . . Garrison . | . . . Intercept . | . . . Searches Triggered . | . . . Construction Impeded . | . . . Haulers Reinforced . | . . . Active Scanning Responses . | . . . Cargo Convoy Interrupts . | . . . Stealth | -11 -10 -10 --------- Run | Yrd Mat Sub Distress Signals 1 | . 1 . Communications Jammed . | . . . Distress Signals . | . . . Times Spotted 30 | . 14 16 Peak Tracking Total 5 | . 2 5 Tactical Retreats 3 | . 2 1 Traps | -11 -10 -10 ------- Run | Yrd Mat Sub Traps Triggered 2 | . 1 1 Indirectly . | . . . Trap Hack Attempts . | . . . Triggered . | . . . Disarmed . | . . . Reprogrammed . | . . . Reused . | . . . Traps Extracted . | . . . Installed . | . . . Triggered . | . . . Machines | -11 -10 -10 ---------- Run | Yrd Mat Sub Machines Disabled 1 | . . 1 Max in Single Turn 1 | . . 1 Machines Repaired . | . . . Machines Dismantled . | . . . Machines Sabotaged . | . . . Overloaded Fab Kills . | . . . Hacking | -11 -10 -10 --------- Run | Yrd Mat Sub Machines Accessed 7 | . 6 1 Terminals 6 | . 6 . Fabricators . | . . . Repair Stations . | . . . Recycling Units . | . . . Scanalyzers . | . . . Garrison Access . | . . . Total Hacks 32 | . 23 9 Successful 25 | . 16 9 Failed 7 | . 7 . Catastrophic 1 | . 1 . Database Lockouts . | . . . Manual 7 | . 7 . Terminals 23 | . 23 . Fabricators . | . . . Repair Stations . | . . . Recycling Units . | . . . Scanalyzers . | . . . Garrison Access . | . . . Terminal Hacks 23 | . 14 9 Record 8 | . . 8 Robot Analysis 1 | . 1 . Prototype ID Bank 2 | . 2 . Emergency Access Points 3 | . 3 . Unreport Threat 1 | . 1 . Locate Traps 3 | . 3 . Maintenance Status 1 | . 1 . Transport Status 1 | . 1 . Registered Components 1 | . 1 . Zone Layout 1 | . 1 . Derelict Proto ID Bank 1 | . . 1 Fabricator Hacks . | . . . Repair Station Hacks . | . . . Recycling Unit Hacks . | . . . Scanalyzer . | . . . Garrison Access Hacks . | . . . Unauthorized Hacks 2 | . 2 . Terminals 2 | . 2 . Botnet 2 | . 2 . Fabricators . | . . . Repair Stations . | . . . Recycling Units . | . . . Scanalyzers . | . . . Garrison Access . | . . . Data Cores Recovered . | . . . Used . | . . . Hacking Detections 5 | . 5 . Full Trace Events 1 | . 1 . Feedback Events . | . . . Feedback Blocked . | . . . Robot Schematics Acquired . | . . . Robots Built . | . . . Authchips . | . . . Time . | . . . Total Robot Build Rating . | . . . Part Schematics Acquired . | . . . Parts Built . | . . . Authchips . | . . . Time . | . . . Total Part Build Rating . | . . . Parts Repaired . | . . . Time . | . . . Parts Recycled . | . . . Recycled Matter . | . . . Retrieved Matter . | . . . Retrieved Components . | . . . Parts Scanalyzed . | . . . Part Schematics Acquired . | . . . Parts Damaged . | . . . Bothacking | -11 -10 -10 ------------ Run | Yrd Mat Sub Used RIF Installer . | . . . Robots Hacked . | . . . Non-combat . | . . . Combat . | . . . Robot Hacks Applied . | . . . Relay Couplers Released . | . . . Fabnet Peak Effective % . | . . . Robots Rewired . | . . . Allies Hacked . | . . . Hacks Repelled . | . . . Allies | -11 -10 -10 -------- Run | Yrd Mat Sub Total Allies . | . . . Largest Group . | . . . Highest-Rated Group . | . . . Highest-Rated Ally . | . . . Total Orders . | . . . Ally Attacks . | . . . Total Damage . | . . . Kills . | . . . Allies Corrupted . | . . . Allies Melted . | . . . Intel | -11 -10 -10 ------- Run | Yrd Mat Sub Robot Analysis Total 1 | . 1 . Derelict Logs Recovered 1 | . . 1 Drone Launches . | . . . Drone Recoveries . | . . . Exploration | -11 -10 -10 ------------- Run | Yrd Mat Sub Turns Passed 2588 | 61 1081 1446 Spaces Moved 1598 | 40 646 912 Core 12 | 12 . . Treads . | . . . Legs 897 | 28 646 223 Wheels 689 | . . 689 Hover . | . . . Flight . | . . . Fastest Speed 50 | 50 120 110 Average Speed 132 | 126 120 142 Slowest Speed 260 | 200 120 260 Overloaded Moves . | . . . Propulsion Burnouts . | . . . Robots Hopped . | . . . Cave-ins Triggered . | . . . Exploration Rate (%) 47 | 3 96 42 Regions Visited 2 Branch Regions 1 Pre-discovered Areas . | . . . Known Exits Taken . | . . . Unknown Exits Taken 2 | 1 1 . Scrap Searched 9 | . . 9 Spaces Dug 1 | . . 1 Terrain Destroyed 5 | . . 5 Melee . | . . . Projectile 5 | . . 5 AOE . | . . . Terrain Rammed . | . . . Walls Destroyed . | . . . Machines Disabled . | . . . Actions | -11 -10 -10 --------- Run | Yrd Mat Sub Total 1940 | 47 909 984 Wait 229 | . 221 8 Move 1596 | 39 645 912 Hop . | . . . Pick Up 21 | 2 11 8 Fast Attach 12 | 6 . 6 Attach 5 | . 1 4 Detach . | . . . Swap 9 | . 4 5 Drop 11 | . 5 6 Fire 57 | . 22 35 Melee . | . . . Ram . | . . . Kick . | . . . Crush . | . . . Escape Stasis . | . . . Rewire . | . . . Trap . | . . . Miscellaneous . | . . . Route ------- -11/Scrapyard -10/Materials (discovered 6 exits: [*Mat x3] / [*Min x2] / *Sub) -10/Subcaves (discovered 2 exits: [*Mat] / [*Rec]) History --------- Turn | Location | Event 20 | -11/Scrapyard | Discovered new exit (range 15) 62 | -11/Scrapyard | Entered Materials 307 | -10/Materials | Build established: Mutant 428 | -10/Materials | Discovered new exit (range 15) 629 | -10/Materials | Discovered new exit (range 13) 718 | -10/Materials | Discovered new exit (range 15) 795 | -10/Materials | Discovered new exit (range 14) 874 | -10/Materials | Discovered new exit (range 16) 1141 | -10/Materials | Discovered new exit (range 5) 1143 | -10/Materials | Entered Subcaves 1148 | -10/Subcaves | Learned 8 Materials zone layouts 1213 | -10/Subcaves | A Subdweller sparked back to life 1213 | -10/Subcaves | A Subdweller sparked back to life 1213 | -10/Subcaves | A Subdweller sparked back to life 1256 | -10/Subcaves | Found Prototype Power Core 1256 | -10/Subcaves | Identified Meta Core 1258 | -10/Subcaves | Attached Meta Core, gained temporary slots: Propulsion, Utility, Weapon 1365 | -10/Subcaves | Discovered new exit (range 11) 1467 | -10/Subcaves | Disturbed a concealed Subdweller 1554 | -10/Subcaves | Build established: Tank 1670 | -10/Subcaves | Disturbed a concealed Subdweller 1790 | -10/Subcaves | Core integrity fell below 50% 2097 | -10/Subcaves | Build established: Scavenger-Skirmisher 2133 | -10/Subcaves | Discovered new exit (range 3) 2313 | -10/Subcaves | Visited 4L-MR0's lab 2342 | -10/Subcaves | Found Gun Armor 2398 | -10/Subcaves | Shifting Twisted Machinery released Battle Rifle 2415 | -10/Subcaves | Shifting Twisted Machinery released Battle Cannon 2421 | -10/Subcaves | Shifting Twisted Machinery released Sub. Monowheel 2442 | -10/Subcaves | Shifting Twisted Machinery released Mak. Spear 2585 | -10/Subcaves | Core integrity fell below 20% 2589 | -10/Subcaves | Destroyed by TH-HRL(R) with Subdweller Laser Last Messages --------------- were useless junk..." Acquired Gun Armor. Acquired 2 matter. Searching scrap... Found Sub. Beam Cannon. Found Shrapnel Trap. Found 21 Matter. Battle Rifle falls loose from the Twisted Machinery. Battle Cannon falls loose from the Twisted Machinery. Sub. Monowheel falls loose from the Twisted Machinery. Acquired Sub. Monowheel. Mak. Spear falls loose from the Twisted Machinery. Acquired Mak. Spear. Sub. Machine Gun shoots sparks and powers down. Dropped Broken Sub. Machine Gun. Temporary Weapon slot lost. Critical hit (Burn: +37). Sub. Beam Cannon destroyed. Sub. Monowheel destroyed. Map ----- +----------------------------------------------------+ | ?????????????#???# #?##" ""#????#?######## | | ?????????????# ??## #####??### "##??????# "#"""" | | ?????????????# ?# ##?????#### #?#?????# "X" | | ?????????????# ### #??????##" "###?????### | | ????????????## #####??##" " ##?#?#### | | ???????????## ##?# " " #???#&####### | | ???????????# ###?# "" " #??##%####??? | | ???????????# ####### #####???#] ""#### | | ???????????# # " ###??##" | | ???????????# [" " #####""## | | ???????????# " " ##### # | | ??????? ## # ### " " # ####" " | | ????? ?## ### ###?# "### ## " | | ????? #?###??# ####### ###### | | ?????# ####### #??# ###?## | | ?????? #?## # ##?#### | | ??????? #### ## ####?# | | ?? ###### ## ###?# # ###### | | ??? ###### ### [ ##??## | | ??? # # #?##### ## ?# | | ????? #?????# | | ???????# g ## R #?????# | | ????????? ## # ###????? # # | | ????????? ??# s R ###??????? ##### | | ?????????????# #????????? #???# # | | ?????????????# ## @ ##???????? ???# # | | ?????????????########## #??????? ?## ? | | ??????????????????????#########???????# ??? ? | | ???????????????#???????????????#??????# #?????? | | ??????????????????????????????????????# ##?????? | | ?????????????????????????????????#???? ##??????? | | ?????????????????????????????????????? ????????? | | ???????????????#??????#??????????????? ????????? | | ????????????????#????????????????????? ????????? | | ?????????????????????????????????????? ????????? | | ?????????????????????????????????????????????????? | | ?????????????????????????????????????????????????? | | ????????????????????????#????????????????????????? | | ?????????????????????????????????????????????????? | | ?????????????????????????????????????????????????? | | ?????????????????????????????????????????????????? | | ?????????????????????????????????????????????????? | | ?????????????????????????????????????????????????? | | ?????????????????????????????????????????????????? | | ?????????????????????????????????????????????????? | | ?????????????????????????????????????????????????? | | ?????????????????????????????????????????????????? | | ?????????????????????????????????????????????????? | | ?????????????????????????????????????????????????? | | ?????????????????????????????????????????????????? | +----------------------------------------------------+ Best States ------------- Heat Dissipation 25 Energy Generation 17 Energy Capacity 180 Matter Stores 300 Matter Capacity 300 Sight Range 16 Robot Scan Range 14 Terrain Scan Range 14 Terrain Scan Density 10 Resistance: KI 20 Resistance: TH 20 Resistance: EX 20 Resistance: EM 20 Resistance: I 20 Resistance: S 20 Resistance: P 20 Weapon Shielding 33 Evasion (%) 55 Offensive Hacking 10 Item Schematics ----------------- None Robot Schematics ------------------ None Fabricated ------------ Nothing Alien Tech Used ----------------- None Achievements -------------- None Challenges ------------ None Game ------ Seed TeslaWeaponsRedirector Manual? 0 Play Time 00:28:14 Cumulative 172.1 hours Start 2024.06.08 @ 23:08:47 End 2024.06.08 @ 23:35:48 Sessions 1 Manual Loads 0 Difficulty Adventurer Special Mode None Game No. 131 Rogue 72 Adventurer 59 Explorer 0 Win Type - Total 1 Types 1/0/0/0/0/0/0/0/0 Lore% 45 Gallery% 60 Achievement% 46 Wizard Run 0 Options --------- Layout 1 ASCII 0 Keyboard 0 Movement Mouse Keybinds 0 Fullscreen 1 Font 16/SmallcapsGlow Map View 55x38 Zoom Use 0% Tactical HUD 0 Map Filters NONE Filters NONE Steam 1 RUN: cf6ffe53-d3a0-4e62-995f-0b1a456a1303